[Event "Live Chess"]
[Site "Chess.com"]
[Date "2023.05.21"]
[Round "-"]
[White "hturner40"]
[Black "Tiltador"]
[Result "1-0"]
[WhiteElo "1798"]
[BlackElo "845"]
[TimeControl "300"]
[EndTime "2:21:39 PDT"]
[Termination "hturner40 won by checkmate"]

1. Nf3 {[%clk 0:04:54.8]} 1... Nc6 {[%clk 0:04:55.8]} 2. e4 {[%clk 0:04:51.4]}
2... e6 {[%clk 0:04:53.3]} 3. d4 {[%clk 0:04:48.2]} 3... d5 {[%clk 0:04:45.8]}
4. e5 {[%clk 0:04:46]} 4... Nge7 {[%clk 0:04:41]} 5. Bg5 {[%clk 0:04:33.9]} 5...
g6 {[%clk 0:04:39.1]} 6. Bf6 {[%clk 0:04:31.6]} 6... Rg8 {[%clk 0:04:37.4]} 7.
h4 {[%clk 0:04:15.2]} 7... Bg7 {[%clk 0:04:36.1]} 8. Bxg7 {[%clk 0:04:07.9]}
8... Rxg7 {[%clk 0:04:34.1]} 9. h5 {[%clk 0:04:07]} 9... gxh5 {[%clk 0:04:32]}
10. Rxh5 {[%clk 0:04:04.6]} 10... b6 {[%clk 0:04:24.4]} 11. Bd3 {[%clk
0:04:02.2]} 11... Nf5 {[%clk 0:04:18.7]} 12. Bxf5 {[%clk 0:03:33.6]} 12... exf5
{[%clk 0:04:13.8]} 13. g3 {[%clk 0:03:32.4]} 13... Be6 {[%clk 0:03:54.7]} 14. c3
{[%clk 0:03:12.5]} 14... Qe7 {[%clk 0:03:53]} 15. Qd3 {[%clk 0:02:59.9]} 15...
O-O-O {[%clk 0:03:47.9]} 16. Nbd2 {[%clk 0:02:57]} 16... Kb7 {[%clk 0:03:28]}
17. O-O-O {[%clk 0:02:53.5]} 17... Na5 {[%clk 0:03:14]} 18. Nh4 {[%clk
0:02:36.2]} 18... Nc4 {[%clk 0:03:10.9]} 19. Nxf5 {[%clk 0:02:25.9]} 19... Bxf5
{[%clk 0:02:59.2]} 20. Qxf5 {[%clk 0:02:23.9]} 20... Nxd2 {[%clk 0:02:47.6]} 21.
Kxd2 {[%clk 0:02:12]} 21... Qd7 {[%clk 0:02:42.1]} 22. Qxd7 {[%clk 0:02:03.5]}
22... Rxd7 {[%clk 0:02:38.2]} 23. Rdh1 {[%clk 0:02:02.1]} 23... a5 {[%clk
0:02:26.8]} 24. Rxh7 {[%clk 0:01:59.3]} 24... Rxh7 {[%clk 0:02:25.6]} 25. Rxh7
{[%clk 0:01:58]} 25... Ka6 {[%clk 0:02:12.9]} 26. e6 {[%clk 0:01:52.9]} 26...
Rd8 {[%clk 0:01:49.1]} 27. Rxf7 {[%clk 0:01:47.5]} 27... Re8 {[%clk 0:01:44.5]}
28. e7 {[%clk 0:01:46.5]} 28... c5 {[%clk 0:01:41.2]} 29. f4 {[%clk 0:01:44.3]}
29... cxd4 {[%clk 0:01:35.5]} 30. cxd4 {[%clk 0:01:42.7]} 30... b5 {[%clk
0:01:32.8]} 31. f5 {[%clk 0:01:41.8]} 31... b4 {[%clk 0:01:31.6]} 32. f6 {[%clk
0:01:41]} 32... Kb5 {[%clk 0:01:30.4]} 33. Rf8 {[%clk 0:01:40.1]} 33... Rxe7
{[%clk 0:01:24.1]} 34. fxe7 {[%clk 0:01:37.1]} 34... Kc4 {[%clk 0:01:23.1]} 35.
Ke3 {[%clk 0:01:33.6]} 35... a4 {[%clk 0:01:18.2]} 36. e8=Q {[%clk 0:01:31.2]}
36... b3 {[%clk 0:01:17.3]} 37. Qc6+ {[%clk 0:01:29.5]} 37... Kb4 {[%clk
0:01:15]} 38. Qc5# {[%clk 0:01:28.5]} 1-0

[Event "Live Chess"]
[Site "Chess.com"]
[Date "2023.05.21"]
[Round "-"]
[White "yeetpizza74"]
[Black "Pandreq"]
[Result "1-0"]
[WhiteElo "481"]
[BlackElo "1237"]
[TimeControl "300"]
[EndTime "2:21:53 PDT"]
[Termination "yeetpizza74 won by checkmate"]

1. e4 {[%clk 0:04:58.5]} 1... e5 {[%clk 0:04:58]} 2. Nf3 {[%clk 0:04:57.5]} 2...
Nc6 {[%clk 0:04:57.3]} 3. Bc4 {[%clk 0:04:56.3]} 3... h6 {[%clk 0:04:56.3]} 4.
d3 {[%clk 0:04:50.8]} 4... Bc5 {[%clk 0:04:54.6]} 5. O-O {[%clk 0:04:46.1]} 5...
Nf6 {[%clk 0:04:49.6]} 6. c3 {[%clk 0:04:42]} 6... d5 {[%clk 0:04:47.6]} 7. exd5
{[%clk 0:04:39.1]} 7... Nxd5 {[%clk 0:04:45.1]} 8. d4 {[%clk 0:04:37.7]} 8...
Nb6 {[%clk 0:04:09.4]} 9. dxc5 {[%clk 0:04:22.9]} 9... Nxc4 {[%clk 0:04:08.2]}
10. Nbd2 {[%clk 0:04:10]} 10... O-O {[%clk 0:04:04.3]} 11. Nxc4 {[%clk
0:04:07.5]} 11... Re8 {[%clk 0:04:00.6]} 12. Re1 {[%clk 0:04:04]} 12... Qxd1
{[%clk 0:03:57.1]} 13. Rxd1 {[%clk 0:04:01.7]} 13... Bg4 {[%clk 0:03:56.1]} 14.
Re1 {[%clk 0:03:58.7]} 14... e4 {[%clk 0:03:46.9]} 15. Nfd2 {[%clk 0:03:46.4]}
15... f5 {[%clk 0:03:32.5]} 16. f3 {[%clk 0:03:43.9]} 16... exf3 {[%clk
0:03:28.3]} 17. Rxe8+ {[%clk 0:03:35]} 17... Rxe8 {[%clk 0:03:28.2]} 18. Nxf3
{[%clk 0:03:28.6]} 18... Bxf3 {[%clk 0:03:10]} 19. gxf3 {[%clk 0:03:26.9]} 19...
Ne5 {[%clk 0:03:09.5]} 20. Nxe5 {[%clk 0:03:23.1]} 20... Rxe5 {[%clk 0:03:09.4]}
21. Bf4 {[%clk 0:03:21.8]} 21... Rxc5 {[%clk 0:03:07.2]} 22. Re1 {[%clk
0:03:09.5]} 22... Kf7 {[%clk 0:03:04.8]} 23. Re5 {[%clk 0:03:05.1]} 23... Rxe5
{[%clk 0:02:48.3]} 24. Bxe5 {[%clk 0:03:03.2]} 24... c6 {[%clk 0:02:45.1]} 25.
b4 {[%clk 0:02:58.3]} 25... b5 {[%clk 0:02:41.2]} 26. a3 {[%clk 0:02:48.9]}
26... a6 {[%clk 0:02:40.2]} 27. Kf2 {[%clk 0:02:42.2]} 27... g6 {[%clk
0:02:38.6]} 28. f4 {[%clk 0:02:39.4]} 28... Ke6 {[%clk 0:02:34.2]} 29. Bd4
{[%clk 0:02:36]} 29... g5 {[%clk 0:02:30.7]} 30. fxg5 {[%clk 0:02:33.9]} 30...
hxg5 {[%clk 0:02:29.6]} 31. h3 {[%clk 0:02:29.2]} 31... Kd5 {[%clk 0:02:21.1]}
32. Be3 {[%clk 0:02:26.8]} 32... f4 {[%clk 0:02:19.5]} 33. Bd2 {[%clk
0:02:23.4]} 33... Ke4 {[%clk 0:02:16]} 34. Ke2 {[%clk 0:02:17.6]} 34... f3+
{[%clk 0:02:01.4]} 35. Kf2 {[%clk 0:02:15.6]} 35... Kd3 {[%clk 0:01:33.6]} 36.
Bxg5 {[%clk 0:02:11.6]} 36... Kxc3 {[%clk 0:01:32.8]} 37. Kxf3 {[%clk
0:02:10.1]} 37... Kb3 {[%clk 0:01:28.9]} 38. h4 {[%clk 0:02:08.9]} 38... Kxa3
{[%clk 0:01:28.1]} 39. h5 {[%clk 0:02:08.1]} 39... Kxb4 {[%clk 0:01:07.5]} 40.
h6 {[%clk 0:02:06.8]} 40... c5 {[%clk 0:01:06.9]} 41. h7 {[%clk 0:02:05.8]}
41... c4 {[%clk 0:01:06.5]} 42. h8=Q {[%clk 0:02:04.6]} 42... c3 {[%clk
0:01:04.2]} 43. Be7+ {[%clk 0:02:03.3]} 43... Kb3 {[%clk 0:01:03.1]} 44. Bf6
{[%clk 0:02:00.4]} 44... b4 {[%clk 0:01:00.6]} 45. Qa8 {[%clk 0:01:53.7]} 45...
c2 {[%clk 0:00:57.4]} 46. Qd5+ {[%clk 0:01:50.4]} 46... Ka3 {[%clk 0:00:52]} 47.
Qc4 {[%clk 0:01:47.8]} 47... b3 {[%clk 0:00:50.5]} 48. Qc3 {[%clk 0:01:41.1]}
48... a5 {[%clk 0:00:45.6]} 49. Qb2+ {[%clk 0:01:38.4]} 49... Kb4 {[%clk
0:00:42.9]} 50. Be7+ {[%clk 0:01:36.8]} 50... Kc4 {[%clk 0:00:39.6]} 51. Ke3
{[%clk 0:01:33.6]} 51... a4 {[%clk 0:00:38.1]} 52. Qd4+ {[%clk 0:01:28.9]} 52...
Kb5 {[%clk 0:00:35.5]} 53. Qc5+ {[%clk 0:01:26.1]} 53... Ka6 {[%clk 0:00:34.2]}
54. Bd8 {[%clk 0:01:23.7]} 54... Kb7 {[%clk 0:00:26.2]} 55. Qc7+ {[%clk
0:01:20.5]} 55... Ka8 {[%clk 0:00:24.2]} 56. Kd4 {[%clk 0:01:15.4]} 56... a3
{[%clk 0:00:20]} 57. Kc5 {[%clk 0:01:11.5]} 57... a2 {[%clk 0:00:17.1]} 58. Kb6
{[%clk 0:01:08.6]} 58... a1=Q {[%clk 0:00:11]} 59. Qb7# {[%clk 0:01:06.2]} 1-0

[Event "Live Chess"]
[Site "Chess.com"]
[Date "2023.05.21"]
[Round "-"]
[White "Duke_of_Bebington"]
[Black "gmnorfolk"]
[Result "0-1"]
[WhiteElo "1586"]
[BlackElo "2129"]
[TimeControl "300"]
[EndTime "2:22:13 PDT"]
[Termination "gmnorfolk won by resignation"]

1. e4 {[%clk 0:04:58.4]} 1... c5 {[%clk 0:04:57.8]} 2. c3 {[%clk 0:04:57.1]}
2... d5 {[%clk 0:04:52.9]} 3. exd5 {[%clk 0:04:55.1]} 3... Nf6 {[%clk
0:04:51.7]} 4. Nf3 {[%clk 0:04:44.3]} 4... Nxd5 {[%clk 0:04:49.9]} 5. Bb5+
{[%clk 0:04:33]} 5... Bd7 {[%clk 0:04:40.5]} 6. Bc4 {[%clk 0:04:27.3]} 6... e6
{[%clk 0:04:38.1]} 7. O-O {[%clk 0:04:24.6]} 7... Be7 {[%clk 0:04:36.9]} 8. d4
{[%clk 0:04:21.9]} 8... cxd4 {[%clk 0:04:35.4]} 9. Nxd4 {[%clk 0:04:20.4]} 9...
O-O {[%clk 0:04:32.9]} 10. Re1 {[%clk 0:04:18.2]} 10... Nc6 {[%clk 0:04:31.2]}
11. Be3 {[%clk 0:04:10.5]} 11... Bf6 {[%clk 0:04:29.4]} 12. Nxc6 {[%clk
0:04:08.1]} 12... Bxc6 {[%clk 0:04:21.8]} 13. Nd2 {[%clk 0:04:07]} 13... Nxe3
{[%clk 0:04:20.1]} 14. Rxe3 {[%clk 0:04:04.3]} 14... Qb6 {[%clk 0:04:16.6]} 15.
Qc2 {[%clk 0:03:58.5]} 15... Rfd8 {[%clk 0:04:11.4]} 16. Rh3 {[%clk 0:03:48.4]}
16... g6 {[%clk 0:04:09.2]} 17. Nf3 {[%clk 0:03:42.1]} 17... Qc5 {[%clk
0:04:06.1]} 18. Bb3 {[%clk 0:03:36.9]} 18... a5 {[%clk 0:03:59.7]} 19. a4 {[%clk
0:03:34.7]} 19... Rd6 {[%clk 0:03:53.3]} 20. Qe2 {[%clk 0:03:22.4]} 20... Rad8
{[%clk 0:03:48]} 21. Rd1 {[%clk 0:03:17.8]} 21... Rxd1+ {[%clk 0:03:39.8]} 22.
Bxd1 {[%clk 0:03:17.7]} 22... Qd5 {[%clk 0:03:34.3]} 23. Bc2 {[%clk 0:03:03.3]}
23... Qa2 {[%clk 0:03:32.6]} 24. b3 {[%clk 0:02:44.3]} 24... Qa1+ {[%clk
0:03:27]} 25. Ne1 {[%clk 0:02:42]} 25... Bxc3 {[%clk 0:03:22.8]} 26. Bd3 {[%clk
0:02:24.4]} 26... Qxe1+ {[%clk 0:03:18.2]} 27. Qxe1 {[%clk 0:02:23.4]} 27...
Bxe1 {[%clk 0:03:17.7]} 0-1

[Event "Live Chess"]
[Site "Chess.com"]
[Date "2023.05.21"]
[Round "-"]
[White "TheSmoulderingMaster"]
[Black "LiamClery2020"]
[Result "0-1"]
[WhiteElo "1696"]
[BlackElo "2017"]
[TimeControl "300"]
[EndTime "2:22:28 PDT"]
[Termination "LiamClery2020 won by resignation"]

1. e4 {[%clk 0:04:59.5]} 1... Nf6 {[%clk 0:04:59.9]} 2. e5 {[%clk 0:04:57.6]}
2... Nd5 {[%clk 0:04:57.4]} 3. d4 {[%clk 0:04:56.6]} 3... d6 {[%clk 0:04:56.2]}
4. c4 {[%clk 0:04:54.9]} 4... Nb6 {[%clk 0:04:55.6]} 5. f4 {[%clk 0:04:54.4]}
5... dxe5 {[%clk 0:04:54.7]} 6. fxe5 {[%clk 0:04:53.8]} 6... Nc6 {[%clk
0:04:54.6]} 7. Nf3 {[%clk 0:04:52.4]} 7... Bg4 {[%clk 0:04:53.8]} 8. Be2 {[%clk
0:04:51.1]} 8... e6 {[%clk 0:04:48.2]} 9. Nc3 {[%clk 0:04:48]} 9... Qd7 {[%clk
0:04:46.9]} 10. Be3 {[%clk 0:04:42.5]} 10... Bxf3 {[%clk 0:04:43.9]} 11. Bxf3
{[%clk 0:04:41]} 11... Nxc4 {[%clk 0:04:42.7]} 12. Bg5 {[%clk 0:04:38.4]} 12...
Nxd4 {[%clk 0:04:37.4]} 13. O-O {[%clk 0:04:32.3]} 13... Nxf3+ {[%clk
0:04:33.9]} 14. Qxf3 {[%clk 0:04:30.7]} 14... c6 {[%clk 0:04:13.2]} 15. Rad1
{[%clk 0:04:25.9]} 15... Qc7 {[%clk 0:04:11.8]} 16. Rd4 {[%clk 0:04:19.8]} 16...
Bc5 {[%clk 0:04:09]} 17. Qd3 {[%clk 0:04:12.4]} 17... Nxe5 {[%clk 0:04:02.9]}
18. Bf4 {[%clk 0:04:04.1]} 18... Rd8 {[%clk 0:03:57.9]} 0-1

[Event "Live Chess"]
[Site "Chess.com"]
[Date "2023.05.21"]
[Round "-"]
[White "WelshTiger"]
[Black "MarkLim1"]
[Result "1-0"]
[WhiteElo "2350"]
[BlackElo "1722"]
[TimeControl "300"]
[EndTime "2:22:38 PDT"]
[Termination "WelshTiger won on time"]

1. e4 {[%clk 0:04:55.7]} 1... e6 {[%clk 0:04:58.5]} 2. d4 {[%clk 0:04:54.6]}
2... d5 {[%clk 0:04:57.8]} 3. Nd2 {[%clk 0:04:54.1]} 3... c5 {[%clk 0:04:56.4]}
4. exd5 {[%clk 0:04:53.2]} 4... Qxd5 {[%clk 0:04:55.6]} 5. dxc5 {[%clk
0:04:50.2]} 5... Qxc5 {[%clk 0:04:54.2]} 6. Ngf3 {[%clk 0:04:49.4]} 6... Nf6
{[%clk 0:04:51.7]} 7. Bd3 {[%clk 0:04:48.3]} 7... Nbd7 {[%clk 0:04:50.7]} 8. O-O
{[%clk 0:04:46.9]} 8... b6 {[%clk 0:04:49.1]} 9. Qe2 {[%clk 0:04:45]} 9... Bb7
{[%clk 0:04:47.3]} 10. Ne4 {[%clk 0:04:41.7]} 10... Qc7 {[%clk 0:04:44.6]} 11.
c3 {[%clk 0:04:37.2]} 11... Be7 {[%clk 0:04:43.1]} 12. Bg5 {[%clk 0:04:33.1]}
12... O-O {[%clk 0:04:41.6]} 13. Rad1 {[%clk 0:04:26.9]} 13... Rfd8 {[%clk
0:04:40.3]} 14. Bb1 {[%clk 0:04:16.7]} 14... Rac8 {[%clk 0:04:33.8]} 15. Nxf6+
{[%clk 0:04:09.1]} 15... Nxf6 {[%clk 0:04:31.1]} 16. Ne5 {[%clk 0:04:03.5]}
16... Rd5 {[%clk 0:04:05.5]} 17. Rxd5 {[%clk 0:04:01]} 17... Nxd5 {[%clk
0:03:51.9]} 18. Bxe7 {[%clk 0:03:58.4]} 18... Qxe7 {[%clk 0:03:49.1]} 19. Re1
{[%clk 0:03:57.7]} 19... Nf6 {[%clk 0:03:40.7]} 20. f3 {[%clk 0:03:50.7]} 20...
Qc5+ {[%clk 0:03:29.9]} 21. Qf2 {[%clk 0:03:45]} 21... Qxf2+ {[%clk 0:03:24.4]}
22. Kxf2 {[%clk 0:03:44.9]} 22... Kf8 {[%clk 0:03:22.5]} 23. g4 {[%clk
0:03:36.1]} 23... Rd8 {[%clk 0:03:19.3]} 24. Bc2 {[%clk 0:03:21.2]} 24... h6
{[%clk 0:02:58.3]} 25. h4 {[%clk 0:03:16.7]} 25... Ke7 {[%clk 0:02:56.8]} 26.
Rd1 {[%clk 0:03:12.1]} 26... Rxd1 {[%clk 0:02:52.7]} 27. Bxd1 {[%clk 0:03:12]}
27... Nd7 {[%clk 0:02:43.3]} 28. f4 {[%clk 0:03:06.1]} 28... f6 {[%clk
0:02:29.9]} 29. Nd3 {[%clk 0:02:58.4]} 29... Kd6 {[%clk 0:02:26.8]} 30. Ke3
{[%clk 0:02:56.3]} 30... e5 {[%clk 0:02:12.3]} 31. Bb3 {[%clk 0:02:43.3]} 31...
exf4+ {[%clk 0:02:06.1]} 32. Nxf4 {[%clk 0:02:41.3]} 32... g5 {[%clk 0:01:46.5]}
33. hxg5 {[%clk 0:02:38.5]} 33... fxg5 {[%clk 0:01:43.2]} 34. Nd3 {[%clk
0:02:34.8]} 34... Ne5 {[%clk 0:01:33.8]} 35. Nxe5 {[%clk 0:02:34]} 35... Kxe5
{[%clk 0:01:32.1]} 36. Bd1 {[%clk 0:02:33.9]} 36... Bc8 {[%clk 0:01:23]} 37. Be2
{[%clk 0:02:33.2]} 37... Be6 {[%clk 0:01:17.7]} 38. a3 {[%clk 0:02:32.2]} 38...
Kd5 {[%clk 0:01:10.3]} 39. b3 {[%clk 0:02:21.6]} 39... Ke5 {[%clk 0:01:07]} 40.
c4 {[%clk 0:02:17]} 40... a5 {[%clk 0:00:59.8]} 41. b4 {[%clk 0:02:14.5]} 41...
axb4 {[%clk 0:00:57.4]} 42. axb4 {[%clk 0:02:14.4]} 42... Bd7 {[%clk 0:00:53.7]}
43. b5 {[%clk 0:02:01.2]} 43... Bc8 {[%clk 0:00:43.4]} 44. Bf3 {[%clk
0:01:58.6]} 44... Be6 {[%clk 0:00:39.8]} 45. c5 {[%clk 0:01:52.2]} 45... bxc5
{[%clk 0:00:18.3]} 46. b6 {[%clk 0:01:51.6]} 46... Bc8 {[%clk 0:00:12]} 47. b7
{[%clk 0:01:43.2]} 47... Bxb7 {[%clk 0:00:11]} 48. Bxb7 {[%clk 0:01:43.1]} 48...
c4 {[%clk 0:00:09.3]} 49. Be4 {[%clk 0:01:34.1]} 49... c3 {[%clk 0:00:08.1]} 50.
Bg6 {[%clk 0:01:32.9]} 50... Kd5 {[%clk 0:00:03.9]} 51. Bc2 {[%clk 0:01:29.8]}
51... Kc4 {[%clk 0:00:02.3]} 52. Ke4 {[%clk 0:01:28.4]} 52... Kb4 {[%clk
0:00:01.9]} 53. Kd4 {[%clk 0:01:25.8]} 53... Ka3 {[%clk 0:00:01.8]} 54. Kxc3
{[%clk 0:01:25]} 54... Ka2 {[%clk 0:00:01.1]} 55. Kd4 {[%clk 0:01:22.8]} 55...
h5 {[%clk 0:00:00.1]} 56. gxh5 {[%clk 0:01:21.7]} 1-0

[Event "Live Chess"]
[Site "Chess.com"]
[Date "2023.05.21"]
[Round "-"]
[White "RamsayFlayer"]
[Black "YrrriKharkiv"]
[Result "0-1"]
[WhiteElo "1965"]
[BlackElo "2070"]
[TimeControl "300"]
[EndTime "2:22:44 PDT"]
[Termination "YrrriKharkiv won on time"]

1. e4 {[%clk 0:04:58.9]} 1... e6 {[%clk 0:04:58.6]} 2. d4 {[%clk 0:04:57]} 2...
d5 {[%clk 0:04:58.3]} 3. Nc3 {[%clk 0:04:55.3]} 3... Nf6 {[%clk 0:04:56.9]} 4.
e5 {[%clk 0:04:54.3]} 4... Nfd7 {[%clk 0:04:56]} 5. f4 {[%clk 0:04:54.1]} 5...
c5 {[%clk 0:04:54.7]} 6. Nf3 {[%clk 0:04:51.3]} 6... Nc6 {[%clk 0:04:53.5]} 7.
dxc5 {[%clk 0:04:50.2]} 7... Bxc5 {[%clk 0:04:52]} 8. Bd3 {[%clk 0:04:49.9]}
8... Qb6 {[%clk 0:04:49.5]} 9. Na4 {[%clk 0:04:22.9]} 9... Qa5+ {[%clk
0:04:48.1]} 10. c3 {[%clk 0:04:20.9]} 10... Be7 {[%clk 0:04:35]} 11. b4 {[%clk
0:04:14.6]} 11... Nxb4 {[%clk 0:04:30.9]} 12. cxb4 {[%clk 0:04:11]} 12... Bxb4+
{[%clk 0:04:30.4]} 13. Bd2 {[%clk 0:04:09.4]} 13... b5 {[%clk 0:04:23]} 14. Nb2
{[%clk 0:04:01.4]} 14... Nc5 {[%clk 0:04:20.5]} 15. Bxb4 {[%clk 0:03:39.6]}
15... Qxb4+ {[%clk 0:04:18.7]} 16. Qd2 {[%clk 0:03:39.2]} 16... Qxd2+ {[%clk
0:04:09.5]} 17. Kxd2 {[%clk 0:03:38]} 17... a6 {[%clk 0:04:08.4]} 18. Rac1
{[%clk 0:03:31.5]} 18... Nd7 {[%clk 0:03:58.6]} 19. a4 {[%clk 0:03:10]} 19...
Rb8 {[%clk 0:03:50]} 20. axb5 {[%clk 0:03:06.7]} 20... axb5 {[%clk 0:03:49.3]}
21. Rc7 {[%clk 0:03:01.1]} 21... O-O {[%clk 0:03:42]} 22. Rhc1 {[%clk
0:02:58.2]} 22... f6 {[%clk 0:03:32.1]} 23. Nd4 {[%clk 0:02:43.5]} 23... fxe5
{[%clk 0:03:05.7]} 24. Nxe6 {[%clk 0:02:23.1]} 24... Re8 {[%clk 0:03:01.6]} 25.
fxe5 {[%clk 0:02:18.9]} 25... Nxe5 {[%clk 0:02:43.1]} 26. Nxg7 {[%clk
0:02:14.7]} 26... Rd8 {[%clk 0:02:31.6]} 27. Bxh7+ {[%clk 0:01:58.3]} 27... Kh8
{[%clk 0:02:21.4]} 28. Nh5 {[%clk 0:01:37.3]} 28... Nc4+ {[%clk 0:02:00.9]} 29.
Nxc4 {[%clk 0:01:32.7]} 29... dxc4+ {[%clk 0:01:59.9]} 30. Kc3 {[%clk
0:01:26.9]} 30... Rd7 {[%clk 0:01:50]} 31. Rxd7 {[%clk 0:01:19.3]} 31... Bxd7
{[%clk 0:01:49.4]} 32. Be4 {[%clk 0:01:14.8]} 32... Be6 {[%clk 0:01:42.2]} 33.
Nf4 {[%clk 0:01:11]} 33... b4+ {[%clk 0:01:38]} 34. Kd4 {[%clk 0:01:07]} 34...
Rd8+ {[%clk 0:01:32.3]} 35. Kc5 {[%clk 0:01:04.8]} 35... Bf7 {[%clk 0:01:20.2]}
36. Bd5 {[%clk 0:01:01.9]} 36... b3 {[%clk 0:01:04.4]} 37. Bxf7 {[%clk
0:00:50.2]} 37... b2 {[%clk 0:01:03.5]} 38. Rb1 {[%clk 0:00:48.3]} 38... c3
{[%clk 0:01:01.9]} 39. Bb3 {[%clk 0:00:43.8]} 39... Rc8+ {[%clk 0:00:57.8]} 40.
Kb4 {[%clk 0:00:37.9]} 40... c2 {[%clk 0:00:50.7]} 41. Bxc2 {[%clk 0:00:36.4]}
41... Rxc2 {[%clk 0:00:50.1]} 42. Kb3 {[%clk 0:00:32.9]} 42... Rf2 {[%clk
0:00:49.3]} 43. Rxb2 {[%clk 0:00:26.8]} 43... Rxf4 {[%clk 0:00:47.8]} 44. Kc3
{[%clk 0:00:22]} 44... Kg7 {[%clk 0:00:46.2]} 45. Kd3 {[%clk 0:00:21.1]} 45...
Rf6 {[%clk 0:00:41.9]} 46. Ke3 {[%clk 0:00:20.8]} 46... Kg6 {[%clk 0:00:40.4]}
47. g3 {[%clk 0:00:19]} 47... Re6+ {[%clk 0:00:38.8]} 48. Kf3 {[%clk 0:00:17.8]}
48... Rf6+ {[%clk 0:00:37.8]} 49. Kg2 {[%clk 0:00:17.3]} 49... Rd6 {[%clk
0:00:36.6]} 50. h3 {[%clk 0:00:17.2]} 50... Re6 {[%clk 0:00:35.1]} 51. Rb5
{[%clk 0:00:16.5]} 51... Rd6 {[%clk 0:00:34.1]} 52. h4 {[%clk 0:00:14.9]} 52...
Re6 {[%clk 0:00:33.2]} 53. Kh3 {[%clk 0:00:14.5]} 53... Rd6 {[%clk 0:00:31.5]}
54. g4 {[%clk 0:00:14.1]} 54... Rd3+ {[%clk 0:00:30.6]} 55. Kg2 {[%clk
0:00:13.7]} 55... Rd2+ {[%clk 0:00:29.8]} 56. Kf3 {[%clk 0:00:13.3]} 56... Rd3+
{[%clk 0:00:29.4]} 57. Kf4 {[%clk 0:00:12.8]} 57... Rd6 {[%clk 0:00:27.1]} 58.
Rg5+ {[%clk 0:00:10.7]} 58... Kh6 {[%clk 0:00:25.8]} 59. h5 {[%clk 0:00:10.3]}
59... Rd4+ {[%clk 0:00:23.2]} 60. Ke5 {[%clk 0:00:09]} 60... Ra4 {[%clk
0:00:17.8]} 61. Rg6+ {[%clk 0:00:07.9]} 61... Kh7 {[%clk 0:00:17.2]} 62. Kf5
{[%clk 0:00:06.2]} 62... Ra5+ {[%clk 0:00:15.9]} 63. Kf4 {[%clk 0:00:05.3]}
63... Ra4+ {[%clk 0:00:15]} 64. Kg3 {[%clk 0:00:05]} 64... Ra3+ {[%clk
0:00:14.2]} 65. Kh4 {[%clk 0:00:04.9]} 65... Ra1 {[%clk 0:00:13.2]} 66. Rd6
{[%clk 0:00:03.6]} 66... Ra7 {[%clk 0:00:11.1]} 67. g5 {[%clk 0:00:02.9]} 67...
Ra4+ {[%clk 0:00:10]} 68. Kg3 {[%clk 0:00:01.4]} 68... Ra3+ {[%clk 0:00:09.5]}
69. Kf4 {[%clk 0:00:01.3]} 69... Ra4+ {[%clk 0:00:08.7]} 70. Kf5 {[%clk
0:00:01.2]} 70... Ra5+ {[%clk 0:00:07.5]} 71. Kf6 {[%clk 0:00:01.1]} 71... Ra7
{[%clk 0:00:06.7]} 72. Rd7+ {[%clk 0:00:01]} 72... Rxd7 {[%clk 0:00:05.6]} 73.
g6+ {[%clk 0:00:00.9]} 73... Kg8 {[%clk 0:00:04.7]} 74. h6 {[%clk 0:00:00.3]}
74... Rd6+ {[%clk 0:00:04.2]} 0-1

[Event "Live Chess"]
[Site "Chess.com"]
[Date "2023.05.21"]
[Round "-"]
[White "KeithArkell"]
[Black "RockTroll"]
[Result "1-0"]
[WhiteElo "2511"]
[BlackElo "2208"]
[TimeControl "300"]
[EndTime "2:22:44 PDT"]
[Termination "KeithArkell won by resignation"]

1. d4 {[%clk 0:04:58.3]} 1... d5 {[%clk 0:04:57]} 2. Nf3 {[%clk 0:04:57.3]} 2...
Nf6 {[%clk 0:04:55.6]} 3. c4 {[%clk 0:04:56.6]} 3... e6 {[%clk 0:04:55]} 4. cxd5
{[%clk 0:04:55.8]} 4... exd5 {[%clk 0:04:53.9]} 5. Nc3 {[%clk 0:04:55.2]} 5...
Bb4 {[%clk 0:04:52.2]} 6. Qa4+ {[%clk 0:04:54.9]} 6... Nc6 {[%clk 0:04:50.8]} 7.
Bg5 {[%clk 0:04:54.7]} 7... h6 {[%clk 0:04:49.5]} 8. Bxf6 {[%clk 0:04:53.6]}
8... Qxf6 {[%clk 0:04:49.4]} 9. e3 {[%clk 0:04:52.7]} 9... O-O {[%clk
0:04:45.3]} 10. Be2 {[%clk 0:04:51.3]} 10... Be6 {[%clk 0:04:42.4]} 11. O-O
{[%clk 0:04:50.2]} 11... a6 {[%clk 0:04:41.4]} 12. a3 {[%clk 0:04:47.8]} 12...
Bd6 {[%clk 0:04:38.3]} 13. Qc2 {[%clk 0:04:45.7]} 13... Ne7 {[%clk 0:04:34.4]}
14. Na4 {[%clk 0:04:44.3]} 14... b6 {[%clk 0:04:30.3]} 15. b4 {[%clk 0:04:42.8]}
15... g5 {[%clk 0:04:27.8]} 16. Nc5 {[%clk 0:04:39.8]} 16... Bf5 {[%clk
0:03:46.4]} 17. Nd3 {[%clk 0:04:33]} 17... Qg7 {[%clk 0:03:38.6]} 18. Rac1
{[%clk 0:04:13.7]} 18... Ng6 {[%clk 0:03:27.9]} 19. g3 {[%clk 0:04:05.8]} 19...
Bh3 {[%clk 0:02:57.8]} 20. Rfe1 {[%clk 0:04:00.6]} 20... f6 {[%clk 0:02:35.7]}
21. Bf1 {[%clk 0:03:54.8]} 21... Bf5 {[%clk 0:02:32.1]} 22. Qc6 {[%clk
0:03:51.4]} 22... Be4 {[%clk 0:02:29.5]} 23. Nd2 {[%clk 0:03:47.5]} 23... f5
{[%clk 0:02:20.6]} 24. Nxe4 {[%clk 0:03:30.1]} 24... dxe4 {[%clk 0:02:18.9]} 25.
Ne5 {[%clk 0:03:01.2]} 25... Nxe5 {[%clk 0:01:54.8]} 26. dxe5 {[%clk 0:03:00]}
26... Qxe5 {[%clk 0:01:53.9]} 27. Red1 {[%clk 0:02:45.7]} 27... f4 {[%clk
0:01:18.7]} 28. Qd5+ {[%clk 0:02:33.4]} 28... Qxd5 {[%clk 0:01:12.9]} 29. Rxd5
{[%clk 0:02:33.3]} 29... fxe3 {[%clk 0:01:11.9]} 30. fxe3 {[%clk 0:02:32.2]}
30... Rf3 {[%clk 0:01:09.2]} 31. Re1 {[%clk 0:02:28]} 31... b5 {[%clk
0:01:04.4]} 32. Bg2 {[%clk 0:02:26.6]} 32... Rf6 {[%clk 0:00:59.7]} 33. Bxe4
{[%clk 0:02:25.2]} 33... Re8 {[%clk 0:00:59.3]} 34. Bc2 {[%clk 0:02:21.9]} 34...
Rfe6 {[%clk 0:00:58.4]} 35. Kf2 {[%clk 0:02:20.3]} 35... Rf8+ {[%clk 0:00:56.7]}
36. Kg2 {[%clk 0:02:19.1]} 36... Ref6 {[%clk 0:00:55.8]} 37. Rd2 {[%clk
0:02:17.7]} 37... Kg7 {[%clk 0:00:53.7]} 38. Ree2 {[%clk 0:02:15.8]} 38... Re8
{[%clk 0:00:52.9]} 39. Bb3 {[%clk 0:02:11.4]} 39... Rf5 {[%clk 0:00:49.6]} 40.
Bd5 {[%clk 0:02:08.5]} 40... Rfe5 {[%clk 0:00:46.4]} 41. e4 {[%clk 0:02:07.5]}
41... R5e7 {[%clk 0:00:42]} 42. h3 {[%clk 0:02:01.7]} 42... Be5 {[%clk
0:00:40.6]} 43. Rf2 {[%clk 0:02:00]} 43... Rf8 {[%clk 0:00:39]} 44. Rxf8 {[%clk
0:01:51.8]} 44... Kxf8 {[%clk 0:00:38.9]} 45. Rc2 {[%clk 0:01:46.6]} 45... Bd6
{[%clk 0:00:37.8]} 46. Rc6 {[%clk 0:01:44.6]} 46... a5 {[%clk 0:00:37.1]} 47.
bxa5 {[%clk 0:01:44.1]} 47... Bxa3 {[%clk 0:00:36.1]} 48. a6 {[%clk 0:01:43.7]}
1-0